bitfinex-derivatives/quotes_BTCF0:USTF0_20241116
["timestamp","ask_amount","ask_price","bid_price","bid_amount"]
[1731744316310,0.41406735,91272.0,91271.0,0.00012089]
[1731744317113,0.41406774,91272.0,91271.0,0.00012089]
[1731744317511,0.48229959,91272.0,91271.0,0.00012089]
[1731744317711,0.48229886,91272.0,91271.0,0.00012089]
[1731744318318,0.12149886,91272.0,91271.0,0.00012089]
[1731744318909,0.12149864,91272.0,91271.0,0.00012089]
[1731744321733,0.12149903,91272.0,91271.0,0.00012089]
[1731744324015,0.12149992,91272.0,91271.0,0.00012089]
[1731744324520,0.23106254,91272.0,91271.0,0.00012089]
[1731744326720,0.23106157,91272.0,91271.0,0.00012089]
[1731744328616,0.4274341,91272.0,91271.0,0.00012089]
[1731744328826,0.23106157,91272.0,91271.0,0.00012089]
[1731744330827,0.42743361,91272.0,91271.0,0.00012089]
[1731744331130,0.78823361,91272.0,91271.0,0.00012089]
[1731744331326,0.59186157,91272.0,91271.0,0.00012089]
[1731744331531,0.5918636,91272.0,91271.0,0.00012089]
[1731744335239,0.78825992,91272.0,91271.0,0.00012089]
[1731744336432,0.5918636,91272.0,91271.0,0.00012089]
[1731744339627,0.78825992,91272.0,91271.0,0.00012089]
[1731744340442,0.5918636,91272.0,91271.0,0.00012089]
[1731744344749,0.73062131,91272.0,91271.0,0.00012089]
[1731744345040,0.5918636,91272.0,91271.0,0.00012089]
[1731744346041,0.70142834,91272.0,91271.0,0.00012089]
[1731744347538,0.83948785,91272.0,91271.0,2.17e-05]
[1731744348743,0.91880785,91272.0,91271.0,2.17e-05]
[1731744348933,0.850576,91272.0,91271.0,2.17e-05]
[1731744349131,0.91880785,91272.0,91271.0,2.17e-05]
[1731744352840,0.850576,91272.0,91271.0,2.17e-05]
[1731744353143,0.91880785,91272.0,91271.0,2.17e-05]
[1731744355350,0.83948785,91272.0,91271.0,2.17e-05]
[1731744355537,0.91880374,91272.0,91271.0,2.17e-05]
[1731744365955,0.78081069,91272.0,91271.0,2.17e-05]
[1731744366161,0.91886519,91272.0,91271.0,2.17e-05]
[1731744366454,0.78081069,91272.0,91271.0,2.17e-05]
[1731744366647,0.91886894,91272.0,91271.0,2.17e-05]
[1731744366948,0.91867139,91272.0,91271.0,2.17e-05]
[1731744367140,0.78080951,91272.0,91271.0,2.17e-05]
[1731744367546,0.91867699,91272.0,91271.0,2.17e-05]
[1731744367856,0.78080951,91272.0,91271.0,2.17e-05]
[1731744369256,0.91884517,91272.0,91271.0,2.17e-05]
[1731744376254,1.47614118,91272.0,91256.0,0.0051]
[1731744376453,0.3608,91257.0,91256.0,0.0051]
[1731744376758,0.49335323,91257.0,91249.0,0.19716249]
[1731744377054,0.06823185,91253.0,91250.0,0.19716249]
[1731744377265,0.12150508,91253.0,91249.0,0.19716249]
[1731744377459,0.12150508,91253.0,91248.0,0.19716249]
[1731744378547,0.12150508,91253.0,91247.0,0.20226249]
[1731744379157,0.12150508,91253.0,91248.0,0.19716249]
[1731744379562,0.23185029,91253.0,91248.0,0.19716249]
[1731744380152,0.23184529,91253.0,91247.0,0.20226249]
[1731744381749,0.23184529,91253.0,91247.0,0.0051]
[1731744382465,0.27350393,91253.0,91247.0,0.0051]
[1731744382764,0.10989049,91253.0,91247.0,0.0051]
[1731744383260,0.27350393,91253.0,91247.0,0.0051]
[1731744383958,0.1631695,91253.0,91247.0,0.0051]
[1731744384354,0.70332227,91253.0,91247.0,0.0051]
[1731744384563,0.4972637,91248.0,91241.0,0.0051]
[1731744384863,0.4972637,91248.0,91240.0,8.925e-05]
[1731744384864,0.06823185,91241.0,91240.0,8.925e-05]
[1731744385457,0.06823185,91242.0,91240.0,8.925e-05]
[1731744386062,0.16356476,91245.0,91240.0,8.925e-05]
[1731744386457,0.13075868,91241.0,91240.0,8.925e-05]
[1731744386866,0.16356476,91246.0,91240.0,8.925e-05]
[1731744387166,0.13075553,91241.0,91240.0,8.925e-05]
[1731744387469,0.16356476,91247.0,91240.0,8.925e-05]
[1731744387771,0.13073945,91241.0,91240.0,8.925e-05]
[1731744389364,0.06823185,91243.0,91240.0,8.925e-05]
[1731744392670,0.13067625,91241.0,91240.0,8.925e-05]
[1731744392856,0.13067625,91242.0,91240.0,8.925e-05]
[1731744394059,0.1989081,91243.0,91240.0,8.925e-05]
[1731744395165,0.06823185,91243.0,91240.0,8.925e-05]
[1731744395567,0.1989081,91243.0,91240.0,8.925e-05]
[1731744400472,0.13067625,91242.0,91240.0,8.925e-05]
[1731744400877,0.13067625,91243.0,91240.0,8.925e-05]
[1731744401578,0.06823185,91246.0,91240.0,8.925e-05]
[1731744401579,0.13067625,91242.0,91240.0,8.925e-05]
[1731744402681,0.13067625,91241.0,91240.0,8.925e-05]
[1731744403883,0.06823185,91246.0,91240.0,8.925e-05]
[1731744405482,0.3608,91248.0,91240.0,8.925e-05]
[1731744405483,0.06823185,91241.0,91240.0,8.925e-05]
[1731744408175,0.06823185,91241.0,91240.0,0.19725174]
[1731744408581,0.06823185,91241.0,91240.0,8.925e-05]
[1731744410382,0.06823185,91241.0,91240.0,0.19722365]
[1731744410685,0.06823185,91241.0,91240.0,8.925e-05]
[1731744412583,0.23179661,91241.0,91240.0,8.925e-05]
[1731744413587,0.06823185,91241.0,91240.0,8.925e-05]
[1731744414083,0.06823185,91241.0,91240.0,0.19735918]
[1731744415383,0.06823185,91241.0,91240.0,8.925e-05]
[1731744416585,0.0321,91243.0,91240.0,8.925e-05]
[1731744416781,0.05328492,91242.0,91241.0,0.19727313]
[1731744416981,0.05328492,91242.0,91240.0,8.925e-05]
[1731744416982,0.0321,91243.0,91240.0,8.925e-05]
[1731744417182,0.16375997,91241.0,91240.0,8.925e-05]
[1731744420790,0.06823185,91244.0,91240.0,8.925e-05]
[1731744421084,0.05328494,91243.0,91242.0,0.19728058]
[1731744421882,0.18561679,91243.0,91240.0,0.19736983]
[1731744422083,0.08528494,91242.0,91240.0,8.925e-05]
[1731744422285,0.05328494,91241.0,91240.0,8.925e-05]
[1731744423183,0.19639482,91241.0,91240.0,8.925e-05]
[1731744423579,0.05328494,91241.0,91240.0,8.925e-05]
[1731744423778,0.24966348,91241.0,91240.0,8.925e-05]
[1731744423979,0.38208494,91241.0,91240.0,8.925e-05]
[1731744424191,0.18379635,91241.0,91226.0,0.19728058]
[1731744424387,0.42903185,91227.0,91224.0,0.19728058]
[1731744424582,0.06823185,91225.0,91222.0,0.19728058]
[1731744424781,0.0636,91226.0,91222.0,0.19728058]
[1731744425190,0.13076968,91223.0,91221.0,0.19892465]
[1731744425394,0.06823185,91222.0,91221.0,0.19892465]
[1731744425590,0.06823185,91222.0,91221.0,0.00164407]
[1731744426387,0.06831442,91222.0,91214.0,0.00011554]
[1731744426693,0.42903185,91215.0,91214.0,0.00011554]
[1731744430288,0.3608,91215.0,91214.0,0.00011554]
[1731744435396,0.3608,91215.0,91214.0,0.04098722]
[1731744437404,0.06823185,91221.0,91214.0,0.04098722]
[1731744439101,8.257e-05,91222.0,91214.0,0.04098722]
[1731744439303,0.06823185,91218.0,91214.0,0.04098722]
[1731744449604,0.06823185,91218.0,91215.0,0.19728058]
[1731744450605,0.06823185,91218.0,91214.0,0.00011554]
[1731744450813,0.0307,91217.0,91214.0,0.00011554]
[1731744452201,0.13070645,91216.0,91215.0,0.19728058]
[1731744452405,0.0307,91217.0,91214.0,0.00011554]
[1731744452406,0.0307,91217.0,91214.0,0.19739612]
[1731744452708,0.13086446,91215.0,91214.0,0.19739612]
[1731744453404,0.0307,91217.0,91214.0,0.00011554]
[1731744453600,0.0307,91217.0,91215.0,0.19722434]
[1731744455008,0.0307,91217.0,91214.0,0.00011554]
[1731744455009,0.0307,91217.0,91216.0,0.19724788]
[1731744455212,0.07042673,91217.0,91214.0,0.00011554]
[1731744455516,0.0307,91217.0,91214.0,0.00011554]
[1731744456213,0.0307,91217.0,91216.0,0.19726366]
[1731744456409,0.08400076,91217.0,91214.0,0.1973792]
[1731744456610,0.0307,91217.0,91216.0,0.19725891]
[1731744457209,0.0307,91217.0,91214.0,0.00011554]
[1731744457404,0.0307,91217.0,91216.0,0.19726158]
[1731744457611,0.0307,91217.0,91214.0,0.00011554]
[1731744458915,0.19435848,91217.0,91216.0,0.19726525]
[1731744459915,0.19435848,91217.0,91214.0,0.00011554]
[1731744459916,0.08399877,91217.0,91214.0,0.00011554]
[1731744460109,0.3608,91215.0,91214.0,0.00011554]
[1731744460415,0.41409877,91215.0,91214.0,0.00011554]
[1731744461407,0.48233062,91215.0,91214.0,0.00011554]
[1731744462114,0.81121727,91215.0,91214.0,0.00011554]
[1731744462421,0.93924385,91215.0,91214.0,0.00011554]
[1731744463318,0.74298542,91215.0,91214.0,0.00011554]
[1731744463621,1.10378542,91215.0,91214.0,0.00011554]
[1731744464121,1.29999868,91215.0,91214.0,0.00011554]
[1731744464316,1.10378542,91215.0,91214.0,0.00011554]
[1731744466416,0.38218542,91215.0,91214.0,0.00011554]
[1731744466723,1.10378542,91215.0,91214.0,0.00011554]
[1731744467730,1.17201727,91215.0,91214.0,0.00011554]
[1731744469225,0.84313727,91215.0,91214.0,0.00011554]
[1731744469420,0.12153727,91215.0,91214.0,0.00011554]
[1731744469615,0.84313727,91215.0,91214.0,0.00011554]
[1731744471718,0.84313729,91215.0,91214.0,0.00011554]
[1731744475418,0.12153729,91215.0,91214.0,0.00011554]
[1731744475622,0.84313729,91215.0,91214.0,0.00011554]
[1731744476823,0.12153729,91215.0,91214.0,0.00011554]
[1731744477024,0.84313729,91215.0,91214.0,0.00011554]
[1731744480435,0.12153729,91215.0,91214.0,0.00011554]
[1731744480737,0.84313768,91215.0,91214.0,0.00011554]
[1731744481439,0.77490583,91215.0,91214.0,0.00011554]
[1731744481747,0.91136953,91215.0,91214.0,0.00011554]
[1731744484447,1.1075155,91215.0,91214.0,0.00011554]
[1731744484634,0.91136953,91215.0,91214.0,0.00011554]
[1731744486344,1.1075155,91215.0,91214.0,0.00011554]
[1731744486734,0.9710518,91215.0,91214.0,0.00011554]
[1731744486944,1.1075155,91215.0,91214.0,0.00011554]
[1731744488236,0.91136953,91215.0,91214.0,0.00011554]
[1731744488545,0.91136953,91215.0,91200.0,0.0051]
[1731744488546,1.04242621,91215.0,91200.0,0.0051]
[1731744488751,1.04242621,91215.0,91199.0,0.0328]
[1731744488752,0.3608,91201.0,91199.0,0.0328]
[1731744489245,0.04718951,91200.0,91199.0,0.0328]
[1731744491847,0.11542136,91200.0,91199.0,0.0328]
[1731744492048,0.15589907,91200.0,91199.0,0.0328]
[1731744492944,0.51669907,91200.0,91199.0,0.0328]
[1731744494349,0.15589907,91200.0,91199.0,0.0328]
[1731744494549,0.51669907,91200.0,91199.0,0.0328]
[1731744497139,0.46950956,91200.0,91199.0,0.0328]
[1731744497343,0.63304904,91200.0,91199.0,0.0328]
[1731744497546,0.46950956,91200.0,91199.0,0.0328]
[1731744498348,0.3608,91200.0,91199.0,0.0328]
[1731744498547,0.42903185,91200.0,91199.0,0.23006525]
[1731744498736,0.42903185,91200.0,91199.0,0.0328]
[1731744499043,0.3608,91200.0,91199.0,0.0328]
[1731744499240,0.42903185,91200.0,91199.0,0.0328]
[1731744499953,0.42903185,91200.0,91199.0,0.04993634]
[1731744500948,0.42903185,91200.0,91199.0,0.0328]
[1731744502051,0.42903185,91200.0,91199.0,0.03451649]
[1731744502743,0.55988059,91200.0,91199.0,0.03451649]
[1731744503445,0.42903185,91200.0,91199.0,0.03451649]
[1731744503843,0.42903185,91200.0,91199.0,0.05165279]
[1731744504251,0.42903185,91200.0,91199.0,0.03451649]
[1731744504748,0.55988473,91200.0,91199.0,0.03451649]
[1731744505847,0.42903185,91200.0,91199.0,0.03451649]
[1731744506055,0.55988623,91200.0,91199.0,0.03451649]
[1731744506952,0.42903185,91200.0,91199.0,0.03451649]
[1731744508354,0.42903185,91200.0,91199.0,0.23171365]
[1731744508756,0.42903185,91200.0,91199.0,0.03451649]
[1731744509058,0.06823185,91200.0,91199.0,0.03451649]
[1731744515346,0.06823185,91200.0,91199.0,0.23172563]
[1731744515553,0.06823185,91200.0,91199.0,0.03451649]
[1731744519252,0.06823185,91200.0,91199.0,0.05165281]
[1731744519448,0.13082288,91200.0,91199.0,0.23171947]
[1731744519662,0.19905473,91200.0,91199.0,0.23171947]
[1731744521048,0.19905473,91200.0,91199.0,0.19891947]
[1731744522362,0.19905473,91200.0,91199.0,0.19893448]
[1731744522562,0.06823185,91200.0,91199.0,0.00171649]
[1731744525162,0.13085672,91203.0,91199.0,0.36251649]
[1731744525355,0.13085672,91204.0,91199.0,0.36251649]
[1731744525550,0.10003185,91214.0,91199.0,0.36251649]
[1731744525551,0.13085672,91205.0,91199.0,0.36251649]
[1731744525762,0.13085672,91205.0,91204.0,0.26297661]
[1731744526066,0.13085672,91205.0,91204.0,0.2646931]
[1731744526261,0.13085672,91205.0,91204.0,0.00171649]
[1731744527467,0.13089009,91205.0,91204.0,0.00171649]
[1731744527661,0.06823185,91208.0,91204.0,0.00171649]
[1731744527859,0.06823185,91208.0,91206.0,0.1972356]
[1731744528063,0.06823185,91208.0,91207.0,0.00171649]
[1731744530166,0.06823185,91208.0,91207.0,0.19895209]
[1731744530364,0.06823185,91208.0,91207.0,0.00171649]
[1731744532674,0.1364637,91208.0,91207.0,0.00171649]
[1731744533065,0.06823185,91208.0,91207.0,0.00171649]
[1731744533270,0.1364637,91208.0,91207.0,0.00171649]
[1731744533462,0.1897694,91208.0,91207.0,0.00171649]
[1731744534565,0.12153755,91208.0,91207.0,0.00171649]
[1731744535563,0.1897694,91208.0,91207.0,0.00171649]
[1731744536873,0.55057056,91208.0,91207.0,0.00171649]
[1731744537169,0.48233871,91208.0,91207.0,0.00171649]
[1731744537667,0.12153871,91208.0,91207.0,0.00171649]
[1731744537868,0.48233871,91208.0,91207.0,0.00171649]
[1731744540969,0.48233872,91208.0,91207.0,0.00171649]
[1731744541577,0.41410687,91208.0,91207.0,0.00171649]
[1731744541770,0.48233872,91208.0,91207.0,0.00171649]
[1731744542469,0.55057057,91208.0,91207.0,0.00171649]
[1731744543274,0.48233872,91208.0,91207.0,0.00171649]
[1731744545972,0.05330687,91208.0,91207.0,0.00171649]
[1731744546177,0.06823185,91208.0,91207.0,0.00171649]
[1731744547676,0.42903185,91208.0,91207.0,0.00171649]
[1731744547980,0.59270198,91208.0,91207.0,0.00171649]
[1731744549379,0.42903185,91208.0,91207.0,0.00171649]
[1731744549583,0.59270641,91208.0,91207.0,0.00171649]
[1731744551788,0.42903185,91208.0,91207.0,0.00171649]
[1731744552298,0.53867135,91208.0,91207.0,0.00171649]
[1731744552989,0.70234591,91208.0,91207.0,0.00171649]
[1731744554885,0.53867135,91208.0,91207.0,0.00171649]
[1731744555081,0.1096395,91208.0,91207.0,0.00171649]
[1731744555994,0.1096395,91208.0,91207.0,0.26466793]
[1731744555995,0.24061555,91208.0,91207.0,0.26466793]
[1731744556290,0.1096395,91208.0,91207.0,0.26466793]
[1731744557484,0.1096395,91208.0,91207.0,0.00171649]
[1731744557797,0.1096395,91208.0,91207.0,0.26466793]
[1731744559192,0.1096395,91208.0,91207.0,0.00171649]
[1731744560197,0.1096395,91208.0,91207.0,0.30566102]
[1731744560398,0.1096395,91208.0,91207.0,0.26466793]
[1731744562192,0.1096395,91208.0,91207.0,0.00171649]
[1731744563002,0.1096395,91208.0,91207.0,0.04260386]
[1731744563199,0.1096395,91208.0,91207.0,0.00171649]
[1731744563594,0.1096395,91208.0,91207.0,0.26466793]
[1731744564093,0.1096395,91208.0,91207.0,0.00171649]
[1731744565092,0.1096395,91208.0,91207.0,0.04236156]
[1731744565503,0.1096395,91208.0,91207.0,0.305313]
[1731744565803,0.1096395,91208.0,91207.0,0.04236156]
[1731744574201,0.1096395,91208.0,91207.0,0.305313]
[1731744575310,0.1096395,91208.0,91207.0,0.04236156]
[1731744575705,0.0051,91213.0,91207.0,0.71337722]
[1731744575908,0.0051,91213.0,91212.0,0.42903185]
[1731744576111,0.0051,91219.0,91212.0,0.42903185]
[1731744576297,0.0051,91219.0,91217.0,0.06823185]
[1731744576606,8.257e-05,91222.0,91218.0,0.07916]
[1731744576809,8.257e-05,91222.0,91219.0,0.0637]
[1731744577306,8.257e-05,91222.0,91219.0,0.06541649]
[1731744577608,8.257e-05,91222.0,91221.0,0.3608]
[1731744578410,8.257e-05,91222.0,91221.0,0.62506798]
[1731744579505,8.257e-05,91222.0,91221.0,0.66647748]
[1731744580111,8.257e-05,91222.0,91221.0,0.73280599]
[1731744580302,8.257e-05,91222.0,91221.0,0.99535748]
[1731744580604,8.257e-05,91222.0,91221.0,1.06358933]
[1731744580811,8.257e-05,91222.0,91221.0,0.99535748]
[1731744581128,8.257e-05,91222.0,91221.0,0.99525084]
[1731744581509,8.257e-05,91222.0,91221.0,0.99525085]
[1731744582010,8.257e-05,91222.0,91221.0,0.73280599]
[1731744582202,0.13096329,91240.0,91222.0,0.32888]
[1731744582404,0.13096329,91240.0,91221.0,0.47215784]
[1731744582405,0.13096329,91239.0,91234.0,0.06823185]
[1731744582708,0.13096329,91240.0,91234.0,0.06823185]
[1731744582902,0.49176329,91241.0,91234.0,0.06823185]
[1731744583105,9.312e-05,91238.0,91234.0,0.06823185]
[1731744583499,9.312e-05,91238.0,91236.0,0.00171649]
[1731744584399,9.312e-05,91238.0,91237.0,0.00171649]
[1731744586914,9.312e-05,91238.0,91237.0,0.0700738]
[1731744588517,0.10969657,91238.0,91237.0,0.0700738]
[1731744589310,0.10969657,91238.0,91237.0,0.10984556]
[1731744591519,0.10969657,91238.0,91237.0,0.13177326]
[1731744602225,0.10969657,91238.0,91237.0,0.32857449]
[1731744602420,0.10969657,91238.0,91237.0,0.26034264]
[1731744602726,0.10969657,91238.0,91237.0,0.14266141]
[1731744603416,0.10969657,91238.0,91237.0,0.00184195]
[1731744603614,0.60145986,91238.0,91231.0,0.0051]
[1731744603822,0.06823185,91235.0,91231.0,0.0051]
[1731744604014,0.19919514,91235.0,91223.0,0.55760123]
[1731744604217,0.19919514,91235.0,91222.0,0.06217879]
[1731744604218,0.3608,91226.0,91222.0,0.06217879]
[1731744604423,0.06823185,91223.0,91222.0,0.0219277]
[1731744605720,0.06823185,91223.0,91221.0,8.674e-05]
[1731744606824,0.0329,91222.0,91221.0,8.674e-05]
[1731744607331,0.0646,91222.0,91221.0,8.674e-05]
[1731744609024,0.0646,91222.0,91211.0,0.19680123]
[1731744609025,0.75428,91222.0,91207.0,0.0219277]
[1731744609332,0.3608,91211.0,91207.0,0.0219277]
[1731744609530,0.3608,91211.0,91200.0,0.27592123]
[1731744609721,0.3608,91211.0,91200.0,0.06173889]
[1731744609722,0.06823185,91203.0,91200.0,0.06173889]
[1731744609923,0.066,91202.0,91200.0,0.02192871]
[1731744610128,0.0984,91202.0,91200.0,0.02192871]
[1731744610327,0.3608,91201.0,91198.0,0.00013685]
[1731744613939,0.06823185,91193.0,91192.0,0.00164446]
[1731744614130,0.42903185,91193.0,91192.0,0.00164446]
[1731744614739,0.42903185,91193.0,91177.0,0.0219277]
[1731744614740,0.42903185,91193.0,91181.0,9.417e-05]
[1731744614934,0.42903185,91182.0,91181.0,9.417e-05]
[1731744615336,0.42913179,91182.0,91181.0,9.417e-05]
[1731744617038,0.50829179,91182.0,91181.0,9.417e-05]
[1731744619233,0.44005994,91182.0,91181.0,9.417e-05]
[1731744619737,0.50829179,91182.0,91181.0,9.417e-05]
[1731744620841,0.54815209,91182.0,91181.0,9.417e-05]
[1731744622337,0.44005994,91182.0,91181.0,9.417e-05]
[1731744622640,0.42913179,91182.0,91181.0,9.417e-05]
[1731744625033,0.06833179,91182.0,91181.0,9.417e-05]
[1731744635449,9.994e-05,91182.0,91181.0,9.417e-05]
[1731744635653,0.06833179,91182.0,91181.0,9.417e-05]
[1731744637245,9.994e-05,91182.0,91181.0,0.01723415]
[1731744637450,0.06833179,91182.0,91181.0,0.01723415]
[1731744638049,9.994e-05,91182.0,91181.0,0.01723415]
[1731744640260,9.994e-05,91182.0,91181.0,0.21415871]
[1731744640551,0.06833179,91182.0,91181.0,0.01723254]
[1731744641548,0.06833179,91182.0,91181.0,0.21425064]
[1731744642466,0.06833179,91182.0,91181.0,0.01723254]
[1731744644062,0.06833179,91182.0,91181.0,9.417e-05]
[1731744644252,0.06833179,91182.0,91181.0,0.01723418]
[1731744644955,0.06833179,91182.0,91181.0,9.417e-05]
[1731744644956,0.23195738,91182.0,91181.0,9.417e-05]
[1731744645257,0.06833179,91182.0,91181.0,9.417e-05]
[1731744645465,0.12165102,91182.0,91181.0,9.417e-05]
[1731744647455,0.12165223,91182.0,91181.0,9.417e-05]
[1731744649764,0.87968408,91182.0,91181.0,9.417e-05]
[1731744649956,0.87968408,91182.0,91168.0,0.19721111]
[1731744649957,1.07614816,91182.0,91168.0,0.19721111]
[1731744650157,0.49167559,91169.0,91167.0,0.19721111]
[1731744650359,0.06823185,91168.0,91167.0,0.19721111]
[1731744651159,0.06823185,91168.0,91163.0,0.26251394]
[1731744651359,0.06823185,91168.0,91167.0,0.19719253]
[1731744651763,0.06823185,91168.0,91163.0,0.26251394]
[1731744652462,0.06823185,91168.0,91165.0,0.19717355]
[1731744653767,0.06823185,91168.0,91164.0,0.19717355]
[1731744654156,0.06823185,91168.0,91163.0,0.0001123]
[1731744654157,0.22950744,91168.0,91163.0,0.0001123]
[1731744655260,0.09863185,91168.0,91163.0,0.0001123]
[1731744655769,0.09863185,91168.0,91163.0,0.19728585]
[1731744655969,0.22950744,91168.0,91163.0,0.0001123]
[1731744656560,0.09863185,91168.0,91163.0,0.0001123]
[1731744656863,0.13087559,91166.0,91163.0,0.0001123]
[1731744657061,0.09863185,91168.0,91163.0,0.0001123]
[1731744662370,0.06823185,91168.0,91163.0,0.0001123]
[1731744665770,0.3608,91169.0,91163.0,0.0001123]
[1731744666066,0.06823185,91164.0,91163.0,0.0001123]
[1731744669367,0.3608,91169.0,91163.0,0.19728585]
[1731744669578,0.06823185,91168.0,91165.0,0.19717355]
[1731744670480,0.06823185,91168.0,91166.0,0.19717355]
[1731744670778,0.3608,91169.0,91166.0,0.19717355]
[1731744670974,0.3608,91169.0,91165.0,0.19717355]
[1731744671183,0.06823185,91166.0,91165.0,0.19717355]
[1731744671381,0.06823185,91166.0,91165.0,0.01714197]
[1731744672777,0.06823185,91166.0,91163.0,0.26251394]
[1731744672980,0.06823185,91166.0,91164.0,0.01714197]
[1731744673171,0.06823185,91166.0,91165.0,0.01714197]
[1731744673375,0.3608,91169.0,91165.0,0.01714197]
[1731744673679,0.3608,91169.0,91166.0,0.26240164]
[1731744673884,0.3608,91169.0,91167.0,0.01714192]
[1731744674080,0.3608,91169.0,91168.0,0.01714192]
[1731744674880,0.3608,91169.0,91168.0,0.11244192]
[1731744675271,0.3608,91169.0,91168.0,0.0953]
[1731744676282,0.06823185,91170.0,91168.0,0.0953]
[1731744678074,0.06823185,91170.0,91168.0,0.13502382]
[1731744678277,0.13087559,91174.0,91168.0,0.13502382]
[1731744678583,0.13597559,91177.0,91173.0,0.26303276]
[1731744678881,0.13087559,91178.0,91174.0,0.26303276]
[1731744679274,0.13087559,91179.0,91174.0,0.26303276]
[1731744679475,0.13087559,91179.0,91178.0,0.19724747]
[1731744679677,0.19910744,91181.0,91176.0,0.26303276]
[1731744679876,0.19910744,91181.0,91180.0,0.19724745]
[1731744680280,0.06823185,91181.0,91180.0,0.19724745]
[1731744680778,0.06823185,91181.0,91177.0,0.26303276]
[1731744681278,0.06823185,91181.0,91170.0,0.4412]
[1731744681279,0.19910744,91181.0,91178.0,0.26303276]
[1731744681473,0.49177553,91182.0,91178.0,0.26303276]
[1731744681681,0.36089994,91182.0,91180.0,0.26303276]
[1731744682185,0.36089994,91182.0,91175.0,0.26303276]
[1731744682378,0.13081561,91180.0,91174.0,0.26303276]
[1731744683273,0.13081561,91181.0,91174.0,0.33126461]
[1731744683475,0.36089994,91182.0,91175.0,0.26303276]
[1731744683774,0.36089994,91182.0,91176.0,0.26303276]
[1731744683981,0.36089994,91182.0,91177.0,0.26303276]
[1731744684484,0.36089994,91182.0,91176.0,0.26303276]
[1731744684879,9.994e-05,91182.0,91177.0,0.26303276]
[1731744685191,9.994e-05,91182.0,91178.0,0.00396849]
[1731744685481,9.994e-05,91182.0,91178.0,0.26303276]
[1731744685785,9.994e-05,91182.0,91178.0,0.62383276]
[1731744685977,9.994e-05,91182.0,91178.0,0.3608]
[1731744686377,9.994e-05,91182.0,91178.0,0.62383276]
[1731744686680,9.994e-05,91182.0,91179.0,0.07218609]
[1731744686984,9.994e-05,91182.0,91180.0,0.08308176]
[1731744687191,9.994e-05,91182.0,91180.0,0.07912]
[1731744689086,9.994e-05,91182.0,91180.0,0.14735185]
[1731744689391,9.994e-05,91182.0,91181.0,0.3608]
[1731744693783,9.994e-05,91182.0,91181.0,0.55754464]
[1731744694782,9.994e-05,91182.0,91181.0,0.62577649]
[1731744695390,9.994e-05,91182.0,91181.0,0.63658464]
[1731744695585,9.994e-05,91182.0,91181.0,0.43984]
[1731744696291,9.994e-05,91182.0,91181.0,0.63658464]
[1731744696897,9.994e-05,91182.0,91181.0,0.43984]
[1731744697980,9.994e-05,91182.0,91181.0,0.3608]
[1731744698181,9.994e-05,91182.0,91181.0,0.43984]
[1731744702390,9.994e-05,91182.0,91180.0,0.237012]
[1731744702589,9.994e-05,91182.0,91176.0,0.21868547]
[1731744702793,0.06823185,91177.0,91176.0,0.21868547]
[1731744703003,0.06823185,91177.0,91176.0,0.2188116]
[1731744703291,0.06823185,91177.0,91176.0,0.02194083]
[1731744704395,0.10023185,91177.0,91169.0,0.19691016]
[1731744704593,0.06823185,91172.0,91169.0,0.03988357]
[1731744704796,0.032,91171.0,91169.0,0.03988357]
[1731744705394,0.19559448,91171.0,91164.0,0.3608]
[1731744705591,0.06823185,91165.0,91164.0,0.3608]
[1731744708000,0.19559448,91171.0,91164.0,0.3608]
[1731744708195,0.06823185,91166.0,91164.0,0.3608]
[1731744708403,0.13063135,91165.0,91164.0,0.3608]
[1731744709299,0.1988632,91166.0,91164.0,0.3608]
[1731744710510,0.1988632,91166.0,91163.0,0.0001123]
[1731744710903,0.06823185,91166.0,91163.0,0.0001123]
[1731744711105,0.13063135,91167.0,91163.0,0.0001123]
[1731744711408,0.13063135,91169.0,91163.0,0.0001123]
[1731744711801,0.00056001,91171.0,91165.0,0.3608]
[1731744712001,0.13063135,91172.0,91165.0,0.3608]
[1731744712300,0.0051,91176.0,91165.0,0.3608]
[1731744713395,0.06823185,91174.0,91165.0,0.3608]
[1731744715709,0.0051,91176.0,91165.0,0.42903185]
[1731744716008,0.0051,91176.0,91175.0,0.3608]
[1731744716220,0.06823185,91179.0,91175.0,0.3608]
[1731744716603,0.1987752,91179.0,91175.0,0.3608]
[1731744717503,0.1987752,91179.0,91166.0,0.0331]
[1731744717700,0.1987752,91179.0,91168.0,0.3608]
[1731744718317,0.13054335,91178.0,91168.0,0.3608]
[1731744721904,0.13054335,91178.0,91168.0,0.38274117]
[1731744722517,0.13054335,91177.0,91168.0,0.38274117]
[1731744722706,0.13054335,91177.0,91168.0,0.45097302]
[1731744722905,0.13054335,91179.0,91168.0,0.45097302]
[1731744723114,0.13054335,91180.0,91168.0,0.45097302]
[1731744723613,0.13054335,91181.0,91168.0,0.45097302]
[1731744725512,0.13054335,91180.0,91168.0,0.45097302]
[1731744726011,0.13054335,91180.0,91173.0,0.06823185]
[1731744726311,0.13054335,91180.0,91173.0,0.14723185]
[1731744726710,0.13054335,91181.0,91173.0,0.14723185]
[1731744728402,0.13054335,91180.0,91173.0,0.14723185]
[1731744728610,9.994e-05,91182.0,91173.0,0.27569099]
[1731744728809,9.994e-05,91182.0,91176.0,0.02194039]
[1731744729514,0.13064329,91182.0,91176.0,0.02194039]
[1731744729911,9.994e-05,91182.0,91177.0,0.3608]
[1731744731521,0.1987752,91181.0,91177.0,0.3608]
[1731744732405,0.13054335,91180.0,91177.0,0.3608]
[1731744732811,0.1987752,91181.0,91177.0,0.40212832]
[1731744733420,0.13054335,91180.0,91177.0,0.40212832]
[1731744734021,0.1987752,91181.0,91177.0,0.40212832]
[1731744735721,0.13054335,91181.0,91177.0,0.40212832]
[1731744737424,0.13054335,91180.0,91177.0,0.59881931]
[1731744737924,0.13054335,91180.0,91178.0,0.19669099]
[1731744738225,0.13054335,91181.0,91178.0,0.19669099]
[1731744738421,0.13054335,91180.0,91179.0,0.19669099]
[1731744738621,0.13054335,91181.0,91179.0,0.19669099]
[1731744738926,0.13054335,91181.0,91180.0,0.19669099]
[1731744739124,0.13064329,91182.0,91180.0,0.19669099]
[1731744739324,0.13054335,91181.0,91180.0,0.19669099]
[1731744739627,0.13054335,91181.0,91180.0,0.19708252]
[1731744740020,0.13054335,91181.0,91177.0,0.40340832]
[1731744740222,0.13054335,91181.0,91177.0,0.40212832]
[1731744740926,0.13054335,91181.0,91177.0,0.04132832]
[1731744741126,0.13054335,91181.0,91176.0,0.45225224]
[1731744741323,0.13054335,91180.0,91176.0,0.45097224]
[1731744742518,0.13054335,91181.0,91176.0,0.7132269]
[1731744742721,0.13054335,91181.0,91177.0,0.26225466]
[1731744743626,0.13054335,91181.0,91176.0,0.75581688]
[1731744743815,0.13054335,91181.0,91176.0,0.75453688]
[1731744744023,0.13064329,91182.0,91176.0,0.75453688]
[1731744744431,0.13064329,91182.0,91181.0,0.19715228]
[1731744745331,9.994e-05,91182.0,91177.0,0.26225466]
[1731744745525,0.13085542,91181.0,91177.0,0.26225466]
[1731744746323,0.13085542,91181.0,91178.0,0.3608]
[1731744748533,0.13085542,91181.0,91178.0,0.62305466]
[1731744748732,0.13085542,91181.0,91178.0,0.3608]
[1731744749324,0.13085542,91180.0,91178.0,0.3608]
[1731744750335,0.13085542,91181.0,91178.0,0.3608]